Cogmind - Beta 16 @@@ ROGUE MODE // 2025.10.29 @ 14:04:39 Player: ZLD1 Result: Destroyed by G-47 Trooper with Particle Gun Performance ------------- Evolutions (1) 500 Regions Visited (3) 600 Robots Destroyed (31) 155 Value Destroyed (620) 620 Prototype IDs (1) 20 Alien Tech Used (0) 0 Bonus (0) 0 TOTAL SCORE: 1895 Bonus ------- None Cogmind --------- Core Integrity 0/400 Matter 300/300 Energy 275/280 System Corruption 0% Temperature Cool (9) Movement Core (200) Ox3 Location -9/Mines Parts ------- > --- POWER (1) -------- Cooled Ion Engine > --- PROPULSION (3) --- (None) > --- UTILITY (3) ------ Signal Interpreter > --- WEAPON (2) ------- Hammer > --- INVENTORY (5) ---- Cooled Ion Engine Cooled Ion Engine Improved Terrain Scanner Weapon Shielding Maul Peak State ------------ > --- POWER ------------ Cooled Ion Engine > --- PROPULSION ------- Improved Treads Improved Treads Aluminum Leg > --- UTILITY ---------- Small Storage Unit Sensor Array Signal Interpreter > --- WEAPON ----------- Maul Maul > --- INVENTORY -------- Cooled Ion Engine Cooled Ion Engine Weapon Shielding Hammer Maul Maul [Rating: 16] Favorites ----------- Power Cooled Ion Engine Engine Cooled Ion Engine Propulsion Aluminum Leg Treads Improved Treads Leg Aluminum Leg Utility Small Storage Unit Device Sensor Array Storage Small Storage Unit Processor Signal Interpreter Weapon Maul Impact Weapon Maul Build | -11 -10 -9 -9 ------- Run | Yrd Mat Mat Min Slots Evolved 2 | . . 2 . Power . | . . . . Propulsion 1 | . . 1 . Utility 1 | . . 1 . Weapon . | . . . . Parts Attached 18 | . 7 9 2 Power 4 | . 1 3 . Engine 4 | . 1 3 . Core . | . . . . Reactor . | . . . . Propulsion 7 | . 2 4 1 Treads 2 | . . 2 . Leg 5 | . 2 2 1 Wheel . | . . . . Hover . | . . . . Flight . | . . . . Utility 4 | . 2 2 . Device 2 | . 1 1 . Storage 1 | . 1 . . Processor 1 | . . 1 . Hackware . | . . . . Protection . | . . . . Artifact . | . . . . Weapon 3 | . 2 . 1 Energy Gun . | . . . . Energy Cannon . | . . . . Ballistic Gun . | . . . . Ballistic Cannon . | . . . . Launcher . | . . . . Special Weapon . | . . . . Impact Weapon 3 | . 2 . 1 Slashing Weapon . | . . . . Piercing Weapon . | . . . . Special Melee Weapon . | . . . . Unidentified Prototypes 1 | . 1 . . Parts Lost 12 | . 3 1 8 Power 3 | . 1 1 1 Propulsion 5 | . 2 . 3 Utility 2 | . . . 2 Weapon 2 | . . . 2 Highest Loss Streak 7 | . 2 1 7 To Critical Strikes 2 | . 1 1 . Average Backups 6 | 2 6 6 6 Power 2 | 1 2 2 2 Propulsion . | 1 . . . Utility 1 | . 1 1 2 Weapon 2 | . 1 2 1 Tool/Special . | . . . . Unused Backups 8 | . 2 . 6 Power 4 | . 2 . 2 Propulsion . | . . . . Utility 2 | . . . 2 Weapon 2 | . . . 2 Tool/Special . | . . . . Average Slot Usage (%) 77 | . 82 85 64 Engine 9 | . 12 6 11 Treads 6 | . . 13 3 Leg 12 | . 16 9 11 Device 9 | . 12 11 5 Storage 9 | . 13 11 5 Processor 7 | . . 11 11 Impact Weapon 21 | . 26 22 16 Peak Build Rating 16 | . 12 16 15 Average Rating 11 | . 10 12 9 On Entrance 5 | . . 7 15 Avg Prop Armor Cover (%) 12 | . . 12 12 Naked Turns 3 | . 3 . . Heaviest Build 20 | . 20 20 20 Greatest Support 46 | 3 20 46 30 Greatest Overweight (x) 5 | . 4 5 3 Average Overweight (x) . | . . . 1 Largest Inventory Capacity 8 | 5 8 8 8 Average Capacity 7 | 5 7 8 6 Most Carried 8 | 5 7 8 8 Average Carried 6 | 3 6 6 6 Final Capacity 8 | 5 8 8 5 Final Carried 8 | 5 7 8 5 Class Distribution -------------------- 100% | Mutant Dominant Class ---------------- Mutant | -10/Materials Mutant | -9/Materials Mutant | -9/Mines Resources | -11 -10 -9 -9 ----------- Run | Yrd Mat Mat Min Matter Collected 385 | 200 70 85 30 Remotely . | . . . . Salvage Created 820 | . 449 298 73 Parts 25 | . 8 17 . Haulers Intercepted 1 | . . 1 . Recyclers Shooed . | . . . . Parts Field Recycled . | . . . . Retrieved Matter . | . . . . Parts Self-Destructed . | . . . . Prevented . | . . . . Parts Restored . | . . . . Kills | -11 -10 -9 -9 ------- Run | Yrd Mat Mat Min Combat Hostiles Destroyed 25 | . 14 11 . Melee 12 | . 7 5 . Classes Destroyed 8 | . 3 5 . Worker 1 | . . 1 . Hauler 1 | . . 1 . Recycler 2 | . 1 . 1 Operator 1 | . . 1 . Watcher 1 | . . 1 . Swarmer 14 | . 6 8 . Grunt 8 | . 8 . . Sentry 3 | . . 3 . Best Kill Streak 4 | . 3 4 1 Combat Bots Only 4 | . 3 4 . Max Kills in Single Turn 1 | . 1 1 1 Gunslinging . | . . . . Exploded . | . . . . Melee 1 | . 1 1 . Uniques/NPCs Destroyed . | . . . . Combat | -11 -10 -9 -9 -------- Run | Yrd Mat Mat Min Hostile Shots Fired 217 | . 94 84 39 Missed 67 | . 22 32 13 Hits 150 | . 72 52 26 Projectile 150 | . 72 52 26 AOE 19 | . . . 19 Critical Strikes 5 | . 1 3 1 Damage Taken 1921 | . 677 458 786 Core 624 | . 208 132 284 Absorbed by Shields . | . . . . Core Remaining (%) 58 | 100 16 . . Volleys Fired . | . . . . Largest . | . . . . Hottest . | . . . . Shots Fired . | . . . . Gun . | . . . . Cannon . | . . . . Launcher . | . . . . Special . | . . . . Kinetic . | . . . . Thermal . | . . . . Explosive . | . . . . Electromagnetic . | . . . . Robot Hit Streak . | . . . . Robot Miss Streak . | . . . . Penetration Max . | . . . . Secondary Targets . | . . . . Shots Hit Robots 61 | . 28 25 8 Core Hits 5 | . 2 3 . Critical Kills . | . . . . Critical Parts Destroyed 12 | . 6 6 . Critical Strikes 12 | . 6 6 . Smash 12 | . 6 6 . Melee Attacks 95 | . 49 35 11 Impact 95 | . 49 35 11 Slashing . | . . . . Piercing . | . . . . Sneak Attacks 7 | . 2 3 2 Combat Hostiles . | . . . . Follow-up Attacks 12 | . 8 4 . Damage Inflicted 2571 | . 1224 1082 265 Guns . | . . . . Cannons . | . . . . Explosions . | . . . . Melee 2571 | . 1224 1082 265 Ramming . | . . . . Kinetic . | . . . . Thermal . | . . . . Explosive . | . . . . Electromagnetic . | . . . . Impact 2571 | . 1224 1082 265 Slashing . | . . . . Piercing . | . . . . Highest Corruption . | . . . . Average Corruption . | . . . . Corruption Purged . | . . . . Corruption Blocked . | . . . . Overload Shots . | . . . . Overflow Damage 958 | . 436 493 29 Projectiles . | . . . . Explosions . | . . . . Melee 958 | . 436 493 29 Knockbacks 12 | . 7 2 3 Impact 11 | . 6 2 3 Kinetic . | . . . . Secondary 1 | . 1 . . Self-Inflicted Damage . | . . . . Shots . | . . . . Rammed . | . . . . Targets Rammed . | . . . . Kicked . | . . . . Crushed . | . . . . Highest Temperature 8 | . . 3 8 Average Temperature 5 | . . 3 8 Received Heat Transfer 306 | . 156 72 78 Siege Activations . | . . . . Martial Activations . | . . . . Shielding Activations . | . . . . Robots Disrupted . | . . . . Combat Hostiles . | . . . . Robots Corrupted 17 | . 8 8 1 Combat Hostiles 13 | . 7 6 . Parts Fried 31 | . 15 15 1 Impact Corruptions 46 | . 22 22 2 Robots Melted . | . . . . Combat Hostiles . | . . . . Parts Melted . | . . . . Heat Transferred . | . . . . Parts Sabotaged . | . . . . Parts Stolen . | . . . . Parts Stripped . | . . . . Power Chain Reactions . | . . . . Alert | -11 -10 -9 -9 ------- Run | Yrd Mat Mat Min Maximum Alert Level . | . . . . Low Security (%) 100 | 100 100 100 100 Level 1 . | . . . . Level 2 . | . . . . Level 3 . | . . . . Level 4 . | . . . . Level 5 . | . . . . High Security . | . . . . Max Security . | . . . . Peak Influence 159 | . 115 159 31 Initial 31 | . . 16 31 Average 39 | . 50 66 1 Influence Increases 766 | . 365 396 5 Destroy 0b10 Robot/C 500 | . 280 220 . Destroy 0b10 Robot/NC 30 | . 5 20 5 Destroy Leader 114 | . 50 64 . Successful Hack 2 | . . 2 . Lose Combat Pursuer 120 | . 30 90 . Influence Decreases 766 | . 325 354 87 Entered New Map 75 | . . 24 51 Time Decay 661 | . 295 330 36 Lost Part 30 | . 30 . . Squads Dispatched 2 | . 1 1 . Investigation 1 | . 1 . . Extermination . | . . . . Reinforcement 1 | . . 1 . Assault . | . . . . Garrison . | . . . . Intercept . | . . . . Searches Triggered . | . . . . Construction Impeded . | . . . . Haulers Reinforced . | . . . . Active Scanning Responses . | . . . . Cargo Convoy Interrupts . | . . . . Stealth | -11 -10 -9 -9 --------- Run | Yrd Mat Mat Min Distress Signals 4 | . . 4 . Communications Jammed . | . . . . Distress Signals . | . . . . Times Spotted 48 | . 21 21 6 Peak Tracking Total 6 | . 4 6 3 Tactical Retreats 4 | . 1 3 . Traps | -11 -10 -9 -9 ------- Run | Yrd Mat Mat Min Traps Triggered 1 | . 1 . . Indirectly . | . . . . Trap Hack Attempts . | . . . . Triggered . | . . . . Disarmed . | . . . . Reprogrammed . | . . . . Reused . | . . . . Traps Extracted . | . . . . Installed . | . . . . Triggered . | . . . . Machines | -11 -10 -9 -9 ---------- Run | Yrd Mat Mat Min Machines Disabled . | . . . . Max in Single Turn . | . . . . Machines Repaired . | . . . . Machines Dismantled . | . . . . Machines Sabotaged . | . . . . Overloaded Fab Kills . | . . . . Hacking | -11 -10 -9 -9 --------- Run | Yrd Mat Mat Min Machines Accessed 2 | . 1 1 . Terminals 1 | . 1 . . Fabricators . | . . . . Repair Stations . | . . . . Recycling Units . | . . . . Scanalyzers 1 | . . 1 . Garrison Access . | . . . . Total Hacks 6 | . 2 4 . Successful 2 | . . 2 . Failed 3 | . 2 1 . Catastrophic 1 | . 1 . . Database Lockouts 1 | . . 1 . Manual 2 | . 2 . . Terminals 2 | . 2 . . Fabricators . | . . . . Repair Stations . | . . . . Recycling Units . | . . . . Scanalyzers 4 | . . 4 . Garrison Access . | . . . . Terminal Hacks . | . . . . Fabricator Hacks . | . . . . Repair Station Hacks . | . . . . Recycling Unit Hacks . | . . . . Scanalyzer 2 | . . 2 . Retrieve Study 2 | . . 2 . Garrison Access Hacks . | . . . . Unauthorized Hacks . | . . . . Terminals . | . . . . Fabricators . | . . . . Repair Stations . | . . . . Recycling Units . | . . . . Scanalyzers . | . . . . Garrison Access . | . . . . Data Cores Recovered . | . . . . Used . | . . . . Hacking Detections 1 | . 1 . . Full Trace Events . | . . . . Feedback Events . | . . . . Feedback Blocked . | . . . . Robot Schematics Acquired . | . . . . Robots Built . | . . . . Authchips . | . . . . Time . | . . . . Total Robot Build Rating . | . . . . Part Schematics Acquired . | . . . . Parts Built . | . . . . Authchips . | . . . . Time . | . . . . Total Part Build Rating . | . . . . Part Studies Acquired 2 | . . 2 . Parts Repaired . | . . . . Time . | . . . . Parts Recycled . | . . . . Recycled Matter . | . . . . Retrieved Matter . | . . . . Retrieved Components . | . . . . Parts Scanalyzed . | . . . . Part Schematics Acquired . | . . . . Parts Damaged . | . . . . Bothacking | -11 -10 -9 -9 ------------ Run | Yrd Mat Mat Min Used RIF Installer . | . . . . Robots Hacked . | . . . . Non-combat . | . . . . Combat . | . . . . Robot Hacks Applied . | . . . . Relay Couplers Released . | . . . . Fabnet Peak Effective % . | . . . . Robots Rewired . | . . . . Allies Hacked . | . . . . Hacks Repelled . | . . . . Allies | -11 -10 -9 -9 -------- Run | Yrd Mat Mat Min Total Allies . | . . . . Largest Group . | . . . . Highest-Rated Group . | . . . . Highest-Rated Ally . | . . . . Total Orders . | . . . . Ally Attacks . | . . . . Total Damage . | . . . . Kills . | . . . . Allies Corrupted . | . . . . Allies Melted . | . . . . Intel | -11 -10 -9 -9 ------- Run | Yrd Mat Mat Min Active Infowar (turns) 1816 | . 634 837 345 Sensors 1816 | . 634 837 345 Robot Analysis Total . | . . . . Derelict Logs Recovered 2 | . . . 2 Drone Launches . | . . . . Drone Recoveries . | . . . . Exploration | -11 -10 -9 -9 ------------- Run | Yrd Mat Mat Min Turns Passed 2330 | 27 724 837 742 Spaces Moved 1325 | 44 349 471 461 Core 293 | 44 42 19 188 Treads 178 | . . 178 . Legs 854 | . 307 274 273 Wheels . | . . . . Hover . | . . . . Flight . | . . . . Fastest Speed 50 | 50 50 120 50 Average Speed 147 | 50 161 140 152 Slowest Speed 300 | 50 250 300 200 Overloaded Moves . | . . . . Propulsion Burnouts . | . . . . Robots Hopped . | . . . . Potential Cave-ins . | . . . . Cave-ins Triggered . | . . . . Exploration Rate (%) 43 | 3 57 42 73 Regions Visited 3 Branch Regions 1 Pre-discovered Areas . | . . . . Known Exits Taken 1 | . . 1 . Unknown Exits Taken 2 | 1 1 . . Scrap Searched 2 | . . . 2 Spaces Dug . | . . . . Terrain Destroyed . | . . . . Melee . | . . . . Projectile . | . . . . AOE . | . . . . Terrain Rammed . | . . . . Walls Destroyed . | . . . . Machines Disabled . | . . . . Actions | -11 -10 -9 -9 --------- Run | Yrd Mat Mat Min Total 1546 | 48 430 582 486 Wait 98 | . 26 61 11 Move 1322 | 43 348 470 461 Hop . | . . . . Pick Up 23 | 5 8 9 1 Fast Attach 4 | . 3 . 1 Attach 14 | . 4 8 2 Detach 1 | . . 1 . Swap 1 | . . 1 . Drop 5 | . 2 2 1 Fire . | . . . . Melee 78 | . 39 30 9 Ram . | . . . . Kick . | . . . . Crush . | . . . . Escape Stasis . | . . . . Rewire . | . . . . Trap . | . . . . Miscellaneous . | . . . . Route ------- -11/Scrapyard -10/Materials (discovered 3 exits: *Mat x2 / [*Min]) -9/Materials (discovered 2 exits: *Mat / *Min) -9/Mines (discovered 1 exit: *Mat) History --------- Turn | Location | Event 4 | -11/Scrapyard | Discovered new exit (range 15) 28 | -11/Scrapyard | Entered Materials 199 | -10/Materials | Discovered new exit (range 15) 310 | -10/Materials | Build established: Mutant 315 | -10/Materials | Discovered new exit (range 16) 333 | -10/Materials | Core integrity fell below 50% 536 | -10/Materials | Discovered new exit (range 12) 693 | -10/Materials | Core integrity fell below 20% 752 | -10/Materials | Entered another Materials area 752 | -9/Materials | Evolved 2 slots: Propulsion x1, Utility x1 1330 | -9/Materials | Discovered new exit (range 15) 1349 | -9/Materials | Identified exit to Materials 1390 | -9/Materials | Central database locked down 1516 | -9/Materials | Discovered new exit (range 8) 1587 | -9/Materials | Identified exit to Mines 1589 | -9/Materials | Entered Mines 1598 | -9/Mines | Learned Materials interactive machine intel 1630 | -9/Mines | Discovered exit to Materials (range 10) 1728 | -9/Mines | YI-UF0 nonchalantly dropped a Grenade Launcher on the ground 1907 | -9/Mines | Learned Materials terminal intel 1943 | -9/Mines | Core integrity fell below 50% 1951 | -9/Mines | Core integrity fell below 20% 1977 | -9/Mines | Lost 7 parts (1p3n2u1w) 2331 | -9/Mines | Destroyed by G-47 Trooper with Particle Gun Last Messages --------------- 01938_ Sml. Storage Unit destroyed. 01939_ The unstable cave ceiling collapses. 01943_ YI-UF0 knocked back. 01944_ The unstable cave ceiling collapses. 01946_ Cld. Ion Engine destroyed. 01946_ Acquired Cld. Ion Engine. 01948_ YI-UF0 mumbles something. 01950_ YI-UF0: "BOOSH!" 01950_ YI-UF0 destroyed. 01953_ The unstable cave ceiling collapses. 02063_ K-01 Serf collects debris. 02092_ U-05 Engineer lays Concrete. 02095_ U-05 Engineer builds a Wall. 02098_ U-05 Engineer lays Concrete. 02103_ U-05 Engineer builds a Wall. 02104_ U-05 Engineer lays Concrete. 02163_ The unstable cave ceiling collapses. 02164_ U-05 Engineer builds a Wall. 02168_ Acquired 10 matter. 02329_ Critical hit (Burn: +37). Map ----- +----------------------------------------------------+ | | | | | | | | | | | | | | | | | | | | | | | | | | | | | | | | | | | ????????????????????????????????????????? | | ???????????????????????????????????????## | | ???????#################???????????#### | | ???????# #??????????## | | ???????# #?????????## | | ???????# """ """ """ #?????????# | | ???????# """ """ """ #?????????# ? | | ???????# """ """ """ #??????????# #?? | | ???????# g @ #??????###### #?? | | ???????# """ """g""" #??????# #?? | | ???????# """ """ """ ######## #### #?? | | ???????# """ """g""" #??# #?? | | ???????# ##########??# ### | | ???????# """ """ """ #???????????# | | ???????# """ """ """ #????????#### ### | | ???????# """ """ """ #??????### #? | | ???????# #?????## #? | | ???????####################?## #? | | ???????????### ##?????## ## ### | | ??????????## #?????# | | ??????????# #?????# | | ?????????## ##?????## ### | | ?????????# ##??????## #?? | | ????????## ##??????## ##?? | | ???????## #????##### ##?? | | ??????## %= #???## ##### ##? | | ?????## ####### ##?## #? | | ???### #### ##### #? | | ??## ### ###% #? | | ??# ## ##% ##? | | ??# < #### % ] ##?? | | ??# ## #??# ##??? | | ??# #?# #??## ### #???? | +----------------------------------------------------+ Best States ------------- Heat Dissipation 28 Energy Generation 14 Energy Capacity 280 Matter Stores 300 Matter Capacity 300 Sight Range 16 Robot Scan Range 14 Terrain Scan Density 10 Evasion (%) 55 Recoil Reduction 2 Item Schematics ----------------- None Robot Schematics ------------------ None Fabricated ------------ Nothing Repaired ---------- Nothing Studied --------- Maul | -9/Materials | Hacked Hammer | -9/Materials | Hacked Alien Tech Used ----------------- None Achievements -------------- None Challenges ------------ None Game ------ Seed ZipConcussiveEdition Manual? 0 Play Time 00:14:26 Cumulative 65.8 hours Start 2025.10.29 @ 13:52:37 End 2025.10.29 @ 14:04:39 Sessions 1 Manual Loads 0 Difficulty Rogue Special Mode None Game No. 156 Rogue 156 Adventurer 0 Explorer 0 Win Type - Total 1 Types 1/0/0/0/0/0/0/0/0/0 Lore% 36 Gallery% 37 Achievement% 21 Wizard Run 0 Options --------- Layout 1 ASCII 0 Keyboard 0 Movement Mouse Keybinds 0 Fullscreen 0 Font 24/Smallcaps Map View 59x39 Zoom Use 0% Tactical HUD 1 Map Filters NONE Filters NONE Steam 1 RUN: 3158de4c-3563-4522-8a73-ea7dbc6e3107